Cogmind - Beta 12 @@@ ROGUE MODE // 2023.10.03 @ 17:45:38 Player: Trantor Result: Destroyed by G-47 Trooper with Particle Gun Performance ------------- Evolutions (0) 0 Regions Visited (2) 400 Robots Destroyed (23) 115 Value Destroyed (579) 579 Prototype IDs (3) 60 Alien Tech Used (0) 0 Bonus (0) 0 TOTAL SCORE: 1154 Bonus ------- None Cogmind --------- Core Integrity 0/250 Matter 272/300 Energy 250/250 System Corruption 0% Temperature Cool (9) Movement Walking (190) Ox1 Location -10/Mines Parts ------- > --- POWER (1) -------- Ion Engine > --- PROPULSION (2) --- Aluminum Leg Aluminum Leg > --- UTILITY (2) ------ Heat Sink Medium Storage Unit > --- WEAPON (2) ------- Light Cannon Grenade Launcher > --- INVENTORY (10) --- Ion Engine Light Treads Wheel High-capacity Matter Pod (200) Sensor Array Medium Laser Beam Cannon Grenade Launcher Grenade Launcher Hammer Peak State ------------ > --- POWER ------------ Ion Engine > --- PROPULSION ------- Aluminum Leg Aluminum Leg > --- UTILITY ---------- Heat Sink Medium Storage Unit > --- WEAPON ----------- Medium Laser Hammer > --- INVENTORY -------- Ion Engine Ion Engine Light Treads Light Treads Wheel Compact Wheel Small Laser Grenade Launcher Grenade Launcher Grenade Launcher [Rating: 8] Favorites ----------- Power Ion Engine Engine Ion Engine Propulsion Aluminum Leg Leg Aluminum Leg Utility Heat Sink Device Heat Sink Storage Medium Storage Unit Protection Light Armor Plating Weapon Medium Laser Energy Gun Medium Laser Ballistic Gun Assault Rifle Ballistic Cannon Light Cannon Launcher Grenade Launcher Impact Weapon Hammer Build | -11 -10 -10 ------- Run | Jun Mat Min Slots Evolved . | . . . Power . | . . . Propulsion . | . . . Utility . | . . . Weapon . | . . . Parts Attached 17 | . 15 2 Power 2 | . 2 . Engine 2 | . 2 . Core . | . . . Reactor . | . . . Propulsion 3 | . 3 . Treads . | . . . Leg 3 | . 3 . Wheel . | . . . Hover . | . . . Flight . | . . . Utility 3 | . 3 . Device 1 | . 1 . Storage 1 | . 1 . Processor . | . . . Hackware . | . . . Protection 1 | . 1 . Artifact . | . . . Weapon 9 | . 7 2 Energy Gun 4 | . 4 . Energy Cannon . | . . . Ballistic Gun . | . . . Ballistic Cannon 1 | . . 1 Launcher 3 | . 2 1 Special Weapon . | . . . Impact Weapon 1 | . 1 . Slashing Weapon . | . . . Piercing Weapon . | . . . Special Melee Weapon . | . . . Unidentified Prototypes . | . . . Parts Lost 3 | . 3 . Power . | . . . Propulsion . | . . . Utility 1 | . 1 . Weapon 2 | . 2 . Highest Loss Streak 2 | . 2 . To Critical Strikes . | . . . Average Slot Usage (%) 98 | . 98 100 Engine 14 | . 14 14 Leg 28 | . 28 28 Device 12 | . 12 14 Storage 14 | . 14 14 Energy Gun 14 | . 16 2 Ballistic Gun 1 | . 1 . Ballistic Cannon 1 | . . 12 Launcher 3 | . 1 14 Impact Weapon 6 | . 7 . Naked Turns . | . . . Heaviest Build 22 | 13 20 22 Greatest Support 20 | 20 20 20 Greatest Overweight (x) 1 | . . 1 Average Overweight (x) . | . . 1 Largest Inventory Capacity 10 | . 10 10 Average Capacity 9 | . 9 10 Most Carried 10 | . 10 10 Average Carried 9 | . 9 9 Final Capacity 10 | 8 10 10 Final Carried 10 | 6 10 10 Class Distribution -------------------- 100% | Mutant Dominant Class ---------------- Mutant | -10/Materials Mutant | -10/Mines Resources | -11 -10 -10 ----------- Run | Jun Mat Min Matter Collected 695 | 200 475 20 Remotely . | . . . Salvage Created 683 | . 676 7 Parts 41 | . 41 . Haulers Intercepted 2 | . 2 . Recyclers Shooed 2 | . 2 . Parts Field Recycled . | . . . Retrieved Matter . | . . . Parts Self-Destructed . | . . . Prevented . | . . . Kills | -11 -10 -10 ------- Run | Jun Mat Min Combat Hostiles Destroyed 14 | . 14 . Guns 5 | . 5 . AOE 8 | . 8 . Classes Destroyed 6 | . 6 . Worker 2 | . 2 . Builder 2 | . 1 1 Hauler 2 | . 2 . Operator 2 | . 2 . Watcher 1 | . 1 . Grunt 14 | . 14 . Best Kill Streak 10 | . 10 1 Combat Bots Only 7 | . 7 . Max Kills in Single Turn 3 | . 3 1 Gunslinging . | . . . Exploded 3 | . 3 . Melee . | . . . Uniques/NPCs Destroyed . | . . . Combat | -11 -10 -10 -------- Run | Jun Mat Min Damage Taken 891 | . 853 38 Core 256 | . 243 13 Absorbed by Shields . | . . . Core Remaining (%) 100 | 100 . . Volleys Fired 97 | . 95 2 Largest 2 | . 2 2 Hottest 80 | . 80 65 Shots Fired 134 | . 130 4 Gun 122 | . 122 . Cannon 2 | . . 2 Launcher 10 | . 8 2 Special . | . . . Kinetic 22 | . 20 2 Thermal 86 | . 86 . Explosive 10 | . 8 2 Electromagnetic 16 | . 16 . Robot Hit Streak 16 | . 16 3 Robot Miss Streak 4 | . 4 1 Penetration Max . | . . . Secondary Targets 1 | . 1 . Max Gunslinging Chain 1 | . 1 . Shots Hit Robots 83 | . 80 3 Core Hits 42 | . 41 1 Critical Kills . | . . . Critical Parts Destroyed . | . . . Critical Strikes 2 | . 2 . Burn 2 | . 2 . Melee Attacks 1 | . 1 . Impact 1 | . 1 . Slashing . | . . . Piercing . | . . . Sneak Attacks . | . . . Combat Hostiles . | . . . Follow-up Attacks . | . . . Damage Inflicted 1794 | . 1618 176 Guns 945 | . 945 . Cannons 19 | . . 19 Explosions 830 | . 673 157 Melee . | . . . Ramming . | . . . Kinetic 193 | . 174 19 Thermal 650 | . 650 . Explosive 796 | . 639 157 Electromagnetic 155 | . 155 . Impact . | . . . Slashing . | . . . Piercing . | . . . Highest Corruption . | . . . Average Corruption . | . . . Corruption Purged . | . . . Corruption Blocked . | . . . Overload Shots . | . . . Overflow Damage 14 | . 13 1 Projectiles . | . . . Explosions 14 | . 13 1 Melee . | . . . Knockbacks 1 | . . 1 Impact . | . . . Kinetic 1 | . . 1 Secondary . | . . . Self-Inflicted Damage 45 | . 45 . Shots 3 | . 3 . Rammed . | . . . Targets Rammed . | . . . Kicked . | . . . Crushed . | . . . Highest Temperature 204 | . 204 . Average Temperature 85 | . 85 . Received Heat Transfer 483 | . 459 24 Siege Activations . | . . . Robots Corrupted 1 | . 1 . Combat Hostiles . | . . . Parts Fried 1 | . 1 . Impact Corruptions . | . . . Robots Melted 1 | . 1 . Combat Hostiles 1 | . 1 . Parts Melted 2 | . 2 . Heat Transferred 1808 | . 1808 . Parts Sabotaged . | . . . Parts Stolen . | . . . Parts Stripped . | . . . Power Chain Reactions 1 | . 1 . Missiles Intercepted . | . . . Alert | -11 -10 -10 ------- Run | Jun Mat Min Peak Influence 259 | . 259 29 Initial 10 | . . 10 Average 85 | . 98 10 Maximum Alert Level 1 | . 1 . Low Security (%) 87 | . 85 100 Level 1 12 | . 14 . Level 2 . | . . . Level 3 . | . . . Level 4 . | . . . Level 5 . | . . . High Security . | . . . Max Security . | . . . Squads Dispatched 4 | . 4 . Investigation 3 | . 3 . Extermination . | . . . Reinforcement 1 | . 1 . Assault . | . . . Garrison . | . . . Intercept . | . . . Searches Triggered . | . . . Construction Impeded . | . . . Haulers Reinforced . | . . . Active Scanning Responses . | . . . Cargo Convoy Interrupts . | . . . Stealth | -11 -10 -10 --------- Run | Jun Mat Min Distress Signals 1 | . 1 . Communications Jammed . | . . . Distress Signals . | . . . Times Spotted 40 | . 38 2 Peak Tracking Total 7 | . 7 2 Tactical Retreats 1 | . 1 . Traps | -11 -10 -10 ------- Run | Jun Mat Min Traps Triggered 2 | . 2 . Indirectly . | . . . Trap Hack Attempts . | . . . Triggered . | . . . Disarmed . | . . . Reprogrammed . | . . . Reused . | . . . Traps Extracted . | . . . Installed . | . . . Triggered . | . . . Machines | -11 -10 -10 ---------- Run | Jun Mat Min Machines Disabled 1 | . 1 . Max in Single Turn 1 | . 1 . Machines Repaired . | . . . Machines Sabotaged . | . . . Overloaded Fab Kills . | . . . Hacking | -11 -10 -10 --------- Run | Jun Mat Min Machines Accessed 9 | . 9 . Terminals 7 | . 7 . Fabricators . | . . . Repair Stations . | . . . Recycling Units 2 | . 2 . Scanalyzers . | . . . Garrison Access . | . . . Total Hacks 26 | . 26 . Successful 11 | . 11 . Failed 15 | . 15 . Catastrophic 2 | . 2 . Database Lockouts . | . . . Manual 14 | . 14 . Terminals 23 | . 23 . Fabricators . | . . . Repair Stations . | . . . Recycling Units 3 | . 3 . Scanalyzers . | . . . Garrison Access . | . . . Terminal Hacks 5 | . 5 . Part Schematic 1 | . 1 . Robot Analysis 1 | . 1 . Prototype ID Bank 2 | . 2 . Unreport Threat 1 | . 1 . Fabricator Hacks . | . . . Repair Station Hacks . | . . . Recycling Unit Hacks 2 | . 2 . Report Inventory 2 | . 2 . Scanalyzer . | . . . Garrison Access Hacks . | . . . Unauthorized Hacks 4 | . 4 . Terminals 4 | . 4 . Botnet 4 | . 4 . Fabricators . | . . . Repair Stations . | . . . Recycling Units . | . . . Scanalyzers . | . . . Garrison Access . | . . . Data Cores Recovered 1 | . 1 . Used . | . . . Hacking Detections 8 | . 8 . Full Trace Events 3 | . 3 . Feedback Events . | . . . Feedback Blocked . | . . . Robot Schematics Acquired . | . . . Robots Built . | . . . Authchips . | . . . Time . | . . . Total Robot Build Rating . | . . . Part Schematics Acquired 1 | . 1 . Parts Built . | . . . Authchips . | . . . Time . | . . . Total Part Build Rating . | . . . Parts Repaired . | . . . Time . | . . . Parts Recycled . | . . . Recycled Matter . | . . . Retrieved Matter . | . . . Retrieved Components . | . . . Parts Scanalyzed . | . . . Part Schematics Acquired . | . . . Parts Damaged . | . . . Bothacking | -11 -10 -10 ------------ Run | Jun Mat Min Used RIF Installer . | . . . Robots Hacked . | . . . Non-combat . | . . . Combat . | . . . Robot Hacks Applied . | . . . Relay Couplers Released . | . . . Fabnet Peak Effective % . | . . . Robots Rewired . | . . . Allies Hacked . | . . . Hacks Repelled . | . . . Allies | -11 -10 -10 -------- Run | Jun Mat Min Total Allies . | . . . Largest Group . | . . . Highest-Rated Group . | . . . Highest-Rated Ally . | . . . Total Orders . | . . . Ally Attacks . | . . . Total Damage . | . . . Kills . | . . . Allies Corrupted . | . . . Allies Melted . | . . . Intel | -11 -10 -10 ------- Run | Jun Mat Min Robot Analysis Total 1 | . 1 . Derelict Logs Recovered . | . . . Drone Launches . | . . . Drone Recoveries . | . . . Exploration | -11 -10 -10 ------------- Run | Jun Mat Min Turns Passed 1876 | . 1594 282 Spaces Moved 1203 | 1 1067 135 Core . | . . . Treads . | . . . Legs 1203 | 1 1067 135 Wheels . | . . . Hover . | . . . Flight . | . . . Fastest Speed 120 | 120 120 190 Average Speed 127 | 120 120 190 Slowest Speed 190 | 120 120 190 Overloaded Moves . | . . . Propulsion Burnouts . | . . . Robots Hopped . | . . . Cave-ins Triggered . | . . . Exploration Rate (%) 46 | 1 99 39 Regions Visited 2 Branch Regions 1 Pre-discovered Areas . | . . . Known Exits Taken . | . . . Unknown Exits Taken 2 | 1 1 . Scrap Searched 2 | . . 2 Spaces Dug . | . . . Terrain Destroyed 62 | . 47 15 Melee . | . . . Projectile . | . . . AOE 62 | . 47 15 Terrain Rammed . | . . . Walls Destroyed . | . . . Machines Disabled . | . . . Actions | -11 -10 -10 --------- Run | Jun Mat Min Total 1407 | . 1251 156 Wait 70 | . 55 15 Move 1201 | . 1066 135 Hop . | . . . Pick Up 10 | . 9 1 Fast Attach 2 | . 2 . Attach 2 | . 2 . Detach . | . . . Swap 13 | . 11 2 Drop 11 | . 10 1 Fire 97 | . 95 2 Melee 1 | . 1 . Ram . | . . . Kick . | . . . Crush . | . . . Escape Stasis . | . . . Rewire . | . . . Trap . | . . . Miscellaneous . | . . . Route ------- -11/Junkyard -10/Materials (discovered 4 exits: [*Mat x3] / [*Min]) -10/Mines History --------- Turn | Location | Event 1 | -11/Junkyard | Discovered new exit (range 0) 1 | -11/Junkyard | Entered Materials 65 | -10/Materials | Discovered new exit (range 15) 318 | -10/Materials | Build established: Mutant 351 | -10/Materials | Discovered new exit (range 16) 577 | -10/Materials | Core integrity fell below 50% 594 | -10/Materials | Core integrity fell below 20% 618 | -10/Materials | Destroyed 7 combat bots 799 | -10/Materials | Discovered new exit (range 16) 1165 | -10/Materials | Discovered new exit (range 8) 1595 | -10/Materials | Entered Mines 1877 | -10/Mines | Destroyed by G-47 Trooper with Particle Gun Last Messages --------------- LOCATION=UNKNOWN GOAL=ESCAPE 01631_ Searching scrap... 01631_ Found Lgt. Cannon. 01631_ Found Sml. Matter Pod. 01631_ Found Weapon Shielding. 01631_ Found Sml. Matter Pod. 01631_ Found 20 Matter. 01632_ Acquired 10 matter. 01635_ Dropped Lgt. Treads. 01636_ Acquired Lgt. Cannon. 01638_ Acquired 10 matter. 01640_ Searching scrap... 01640_ Found Core Shielding. 01640_ Found Hover Unit. 01640_ Found Targeting Computer. 01640_ Found 32 Matter. 01871_ U-05 Engineer destroyed. 01874_ T-07 Excavator knocked back. 01874_ Destroyed Mining Laser. Map ----- +----------------------------------------------------+ | ???????## ##???# ###??????????????????????????? | | ??????## ##??# #????????????????????????????? | | ??????# #??# #????????????????????????????? | | ??????# #### !#????????????????????????????? | | ???????# ## =!!#????????????????????????????? | | ????????# ## %! #????????????????????????????? | | ????????# ##!=###????????????????????????????? | | ???????## # #??????????????????????????????? | | ???????# #?????###??????????????????????? | | ???????# #????## ##?????????????????????? | | ???????## #???## #?????????????????????? | | ????????## ##### ##?????????????????????? | | ?????????## ## ##??????????????????????? | | ?????????## ##???????????????????????? | | ?????##### ####????????????????????????? | | ???### ## ##???????????????????????????? | | ??## #### ##????????????????????????????? | | ??# ##??## ##?????????????????????????????? | | ??# #????####??????????????????????????????? | | ?## ##??????????????????????????????????????? | | ## #???????????????????????????????????????? | | # #??????????????????#????????????????????? | | # ##????????????????? #????????????????????? | | # ##???????????????### #????????????????????? | | # #????????######### #????????????????????? | | ##???????# t @ #????????????????????? | | ##??????# #### #???????????????????? | | """ #???#### #??# #???????????????????? | | """ #??## ##?## #???????????????????? | | """ ##??# #??# t #???????????????????? | | ##??## #??# ###???????????????????? | | #?### """ ##?### g ?????????????????????? | | #?# """ ##??# ?????????????????????? | | ##?# """ ##?# g ?????????????????????? | | ##??## ##?# ????????????????????? | | ##???####### #?? ##????????????????????? | | ##????????## #??##?????????????????????? | | # ###???????# # ##?????????????????????????? | | ### ##??????# ####??????????????????????????? | | ??#### #?????## ###???????????????????????????? | | ?????## #????## ##??????????????????????????? | | ??????# #????# #??????????????????????????? | | ??????# ###### #??????????????????????????? | | ??????# ##??????????????????????????? | | ??????# ###???????????????????????????? | | ??????# #########?????????????????????????????? | | ??????## ##?????????????????????????????????????? | | ???????####??????????????????????????????????????? | | ?????????????????????????????????????????????????? | | ?????????????????????????????????????????????????? | +----------------------------------------------------+ Best States ------------- Heat Dissipation 35 Energy Generation 10 Energy Capacity 250 Matter Stores 300 Matter Capacity 300 Sight Range 16 Terrain Scan Density 10 Armor Coverage 150 Evasion (%) 55 Item Schematics ----------------- Med. Storage Unit | -10/Materials | Hacked Robot Schematics ------------------ None Fabricated ------------ Nothing Alien Tech Used ----------------- None Achievements -------------- None Challenges ------------ None Game ------ Seed ShrapnelDisruptionMantle Manual? 0 Play Time 00:17:39 Cumulative 249.7 hours Start 2023.10.03 @ 17:29:18 End 2023.10.03 @ 17:45:38 Sessions 1 Manual Loads 0 Difficulty Rogue Special Mode None Game No. 139 Rogue 95 Adventurer 44 Explorer 0 Win Type - Total 2 Types 2/0/0/0/0/0/0/0/0 Lore% 60 Gallery% 63 Achievement% 57 Wizard Run 0 Options --------- ASCII 0 Keyboard 1 Movement Vi Keybinds 1 Fullscreen 2 Font 18/X11Bold Map View 76x50 Tactical HUD 1 Map Filters NONE Filters NONE Steam 1 RUN: f59e3d11-7843-4688-b53b-0d1ea8627ee9